[Event "Titled Tuesday Blitz July 6 2021"]
[White "Vignesh, N R"]
[Black "Siva Mahadevan"]
[WhiteFideId "25012215"]
[BlackFideId "25043153"]
[WhiteElo "2401"]
[BlackElo "2203"]
[Result "0-1"]
[Round "11"]
[TimeControl "180+1"]
[Date "2021.07.06"]
[WhiteClock "0:01:01"]
[BlackClock "0:02:02"]

1. d4 {[%clk 0:03:00]}  Nf6 {[%clk 0:03:00]} 2. Nf3 {[%clk 0:02:58]}  g6 {[%clk 0:03:00]} 3. Bg5 {[%clk 0:02:56]}  Bg7 {[%clk 0:03:00]} 4. Bxf6 {[%clk 0:02:56]}  Bxf6 {[%clk 0:03:01]} 5. e4 {[%clk 0:02:56]}  O-O {[%clk 0:03:00]} 6. e5 {[%clk 0:02:54]}  Bg7 {[%clk 0:03:00]} 7. Bd3 {[%clk 0:02:52]}  d6 {[%clk 0:03:00]} 8. h3 {[%clk 0:02:50]}  Nc6 {[%clk 0:02:55]} 9. Be4 {[%clk 0:02:26]}  dxe5 {[%clk 0:02:37]} 10. Bxc6 {[%clk 0:02:25]}  bxc6 {[%clk 0:02:38]} 11. Nxe5 {[%clk 0:02:16]}  c5 {[%clk 0:02:27]} 12. c3 {[%clk 0:01:49]}  Ba6 {[%clk 0:02:20]} 13. Qa4 {[%clk 0:01:43]}  Qd6 {[%clk 0:02:13]} 14. Nd2 {[%clk 0:01:25]}  cxd4 {[%clk 0:02:08]} 15. cxd4 {[%clk 0:01:11]}  Bxe5 {[%clk 0:02:04]} 16. dxe5 {[%clk 0:01:12]}  Qxe5+ {[%clk 0:02:05]} 17. Qe4 {[%clk 0:01:08]}  Qxb2 {[%clk 0:02:04]} 18. Qb1 {[%clk 0:01:01]}  Qe5+ {[%clk 0:02:02]} 0-1


[Site "https://www.chess.com"]

[Event "Titled Tuesday Blitz July 6 2021"]
[White "Vivas Zamora, Fabian Ernesto"]
[Black "Karttunen, Mika"]
[WhiteFideId "3902480"]
[BlackFideId "502081"]
[WhiteElo "1966"]
[BlackElo "2343"]
[Result "0-1"]
[Round "11"]
[TimeControl "180+1"]
[Date "2021.07.06"]
[WhiteClock "0:00:01"]
[BlackClock "0:00:21"]

1. c4 {[%clk 0:03:00]}  Nf6 {[%clk 0:02:59]} 2. Nc3 {[%clk 0:03:01]}  g6 {[%clk 0:02:59]} 3. g3 {[%clk 0:02:57]}  Bg7 {[%clk 0:02:59]} 4. Bg2 {[%clk 0:02:58]}  O-O {[%clk 0:02:59]} 5. d4 {[%clk 0:02:58]}  Nc6 {[%clk 0:02:51]} 6. Nf3 {[%clk 0:02:48]}  d5 {[%clk 0:02:49]} 7. cxd5 {[%clk 0:02:37]}  Nxd5 {[%clk 0:02:48]} 8. e4 {[%clk 0:02:37]}  Nb6 {[%clk 0:02:34]} 9. d5 {[%clk 0:02:30]}  Nb4 {[%clk 0:02:27]} 10. O-O {[%clk 0:02:14]}  c6 {[%clk 0:02:26]} 11. Qb3 {[%clk 0:02:03]}  Nd3 {[%clk 0:01:53]} 12. Be3 {[%clk 0:01:46]}  c5 {[%clk 0:01:52]} 13. Rfd1 {[%clk 0:01:08]}  Nxb2 {[%clk 0:01:47]} 14. Qxb2 {[%clk 0:01:01]}  Na4 {[%clk 0:01:47]} 15. Nxa4 {[%clk 0:01:00]}  Bxb2 {[%clk 0:01:46]} 16. Nxb2 {[%clk 0:01:01]}  b6 {[%clk 0:01:45]} 17. e5 {[%clk 0:00:45]}  Bb7 {[%clk 0:01:45]} 18. Bh6 {[%clk 0:00:30]}  Re8 {[%clk 0:01:44]} 19. Ng5 {[%clk 0:00:30]}  f6 {[%clk 0:01:38]} 20. Ne6 {[%clk 0:00:10]}  Qd7 {[%clk 0:01:38]} 21. f4 {[%clk 0:00:04]}  Rac8 {[%clk 0:01:33]} 22. Nc4 {[%clk 0:00:04]}  Ba6 {[%clk 0:01:29]} 23. Ne3 {[%clk 0:00:04]}  c4 {[%clk 0:01:11]} 24. d6 {[%clk 0:00:04]}  Bb7 {[%clk 0:01:02]} 25. Bxb7 {[%clk 0:00:03]}  Qxb7 {[%clk 0:01:02]} 26. d7 {[%clk 0:00:03]}  Qc6 {[%clk 0:00:54]} 27. dxe8=Q+ {[%clk 0:00:03]}  Rxe8 {[%clk 0:00:54]} 28. Nd4 {[%clk 0:00:04]}  Qe4 {[%clk 0:00:54]} 29. Ng4 {[%clk 0:00:03]}  Kf7 {[%clk 0:00:46]} 30. exf6 {[%clk 0:00:02]}  exf6 {[%clk 0:00:46]} 31. Nf2 {[%clk 0:00:02]}  Qe3 {[%clk 0:00:41]} 32. Nc2 {[%clk 0:00:02]}  Qc3 {[%clk 0:00:38]} 33. Rac1 {[%clk 0:00:02]}  b5 {[%clk 0:00:36]} 34. Rd7+ {[%clk 0:00:01]}  Re7 {[%clk 0:00:36]} 35. Rxe7+ {[%clk 0:00:01]}  Kxe7 {[%clk 0:00:37]} 36. f5 {[%clk 0:00:02]}  g5 {[%clk 0:00:36]} 37. h4 {[%clk 0:00:01]}  Qxg3+ {[%clk 0:00:35]} 38. Kf1 {[%clk 0:00:01]}  Qxh4 {[%clk 0:00:35]} 39. Re1+ {[%clk 0:00:02]}  Kf7 {[%clk 0:00:35]} 40. Nd4 {[%clk 0:00:02]}  Qxh6 {[%clk 0:00:31]} 41. Nc6 {[%clk 0:00:02]}  Qh5 {[%clk 0:00:30]} 42. Re7+ {[%clk 0:00:02]}  Kf8 {[%clk 0:00:30]} 43. Rxa7 {[%clk 0:00:03]}  Qf3 {[%clk 0:00:30]} 44. Nd8 {[%clk 0:00:03]}  Qxf5 {[%clk 0:00:25]} 45. Rc7 {[%clk 0:00:01]}  h5 {[%clk 0:00:23]} 46. Nb7 {[%clk 0:00:01]}  h4 {[%clk 0:00:23]} 47. Nd6 {[%clk 0:00:01]}  Qe6 {[%clk 0:00:21]} 0-1


[Site "https://www.chess.com"]

[Event "Titled Tuesday Blitz July 6 2021"]
[White "Wagner, Dennis"]
[Black "Tejedor Fuente, Enrique"]
[WhiteFideId "24650684"]
[BlackFideId "2299100"]
[WhiteElo "2355"]
[BlackElo "2535"]
[Result "0-1"]
[Round "11"]
[TimeControl "180+1"]
[Date "2021.07.06"]
[WhiteClock "0:00:01"]
[BlackClock "0:00:51"]

1. e4 {[%clk 0:03:00]}  d6 {[%clk 0:02:54]} 2. d4 {[%clk 0:02:58]}  Nf6 {[%clk 0:02:41]} 3. Nc3 {[%clk 0:02:58]}  e5 {[%clk 0:02:42]} 4. Nf3 {[%clk 0:02:58]}  Nbd7 {[%clk 0:02:39]} 5. Bc4 {[%clk 0:02:57]}  Be7 {[%clk 0:02:37]} 6. a4 {[%clk 0:02:58]}  O-O {[%clk 0:02:35]} 7. O-O {[%clk 0:02:58]}  c6 {[%clk 0:02:35]} 8. h3 {[%clk 0:02:58]}  b6 {[%clk 0:02:35]} 9. Be3 {[%clk 0:02:55]}  a6 {[%clk 0:02:35]} 10. Re1 {[%clk 0:02:26]}  Qc7 {[%clk 0:02:34]} 11. Bb3 {[%clk 0:02:23]}  Bb7 {[%clk 0:02:31]} 12. Nh4 {[%clk 0:02:23]}  Rfe8 {[%clk 0:02:26]} 13. Nf5 {[%clk 0:02:22]}  Bf8 {[%clk 0:02:26]} 14. Qf3 {[%clk 0:02:19]}  c5 {[%clk 0:02:16]} 15. dxe5 {[%clk 0:02:12]}  Nxe5 {[%clk 0:02:15]} 16. Qg3 {[%clk 0:02:08]}  c4 {[%clk 0:02:13]} 17. Ba2 {[%clk 0:02:03]}  Nxe4 {[%clk 0:02:11]} 18. Nxe4 {[%clk 0:01:57]}  Bxe4 {[%clk 0:02:12]} 19. Bxb6 {[%clk 0:00:39]}  Qxb6 {[%clk 0:02:03]} 20. Rxe4 {[%clk 0:00:39]}  g6 {[%clk 0:01:45]} 21. Bxc4 {[%clk 0:00:30]}  Qxb2 {[%clk 0:01:41]} 22. Rae1 {[%clk 0:00:25]}  Qxc2 {[%clk 0:01:33]} 23. Bd5 {[%clk 0:00:25]}  Rab8 {[%clk 0:01:31]} 24. f4 {[%clk 0:00:25]}  Qc5+ {[%clk 0:01:18]} 25. Ne3 {[%clk 0:00:05]}  Nd3 {[%clk 0:01:13]} 26. Rxe8 {[%clk 0:00:05]}  Rxe8 {[%clk 0:01:12]} 27. Re2 {[%clk 0:00:05]}  Bh6 {[%clk 0:00:59]} 28. Kf1 {[%clk 0:00:01]}  Qc1+ {[%clk 0:00:51]} 29. Re1 {[%clk 0:00:01]}  Qxe1+ {[%clk 0:00:51]} 0-1


[Site "https://www.chess.com"]

[Event "Titled Tuesday Blitz July 6 2021"]
[White "Yakubboev, Nodirbek"]
[Black "Gabrielian, Artur"]
[WhiteFideId "14203987"]
[BlackFideId "4131002"]
[WhiteElo "2519"]
[BlackElo "2523"]
[Result "0-1"]
[Round "11"]
[TimeControl "180+1"]
[Date "2021.07.06"]
[WhiteClock "0:00:02"]
[BlackClock "0:00:30"]

1. d4 {[%clk 0:03:00]}  Nf6 {[%clk 0:02:59]} 2. c4 {[%clk 0:03:00]}  c5 {[%clk 0:02:59]} 3. Nf3 {[%clk 0:02:55]}  e6 {[%clk 0:03:00]} 4. Nc3 {[%clk 0:02:51]}  cxd4 {[%clk 0:02:56]} 5. Nxd4 {[%clk 0:02:50]}  d5 {[%clk 0:02:56]} 6. cxd5 {[%clk 0:02:29]}  Nxd5 {[%clk 0:02:53]} 7. Bd2 {[%clk 0:02:27]}  Be7 {[%clk 0:02:49]} 8. e4 {[%clk 0:02:17]}  Nxc3 {[%clk 0:02:46]} 9. Bxc3 {[%clk 0:02:17]}  O-O {[%clk 0:02:46]} 10. Be2 {[%clk 0:02:11]}  Bd7 {[%clk 0:02:41]} 11. O-O {[%clk 0:02:08]}  a6 {[%clk 0:02:41]} 12. Rc1 {[%clk 0:02:00]}  Nc6 {[%clk 0:02:41]} 13. Nf3 {[%clk 0:01:52]}  Rc8 {[%clk 0:02:31]} 14. Qd2 {[%clk 0:01:45]}  Qb6 {[%clk 0:02:07]} 15. Qf4 {[%clk 0:01:29]}  Bb4 {[%clk 0:01:29]} 16. Rfd1 {[%clk 0:00:25]}  Bxc3 {[%clk 0:01:28]} 17. bxc3 {[%clk 0:00:25]}  Qc7 {[%clk 0:01:15]} 18. Qh4 {[%clk 0:00:23]}  h6 {[%clk 0:01:14]} 19. h3 {[%clk 0:00:14]}  Rfd8 {[%clk 0:01:13]} 20. Nd4 {[%clk 0:00:13]}  Ne5 {[%clk 0:01:06]} 21. Qg3 {[%clk 0:00:10]}  Ba4 {[%clk 0:01:02]} 22. Re1 {[%clk 0:00:09]}  Ng6 {[%clk 0:00:57]} 23. Qe3 {[%clk 0:00:05]}  Qf4 {[%clk 0:00:54]} 24. Qxf4 {[%clk 0:00:02]}  Nxf4 {[%clk 0:00:54]} 25. Bf1 {[%clk 0:00:02]}  Ng6 {[%clk 0:00:37]} 26. g3 {[%clk 0:00:02]}  Ne5 {[%clk 0:00:31]} 27. f4 {[%clk 0:00:02]}  Nc6 {[%clk 0:00:30]} 0-1


[Site "https://www.chess.com"]

[Event "Titled Tuesday Blitz July 6 2021"]
[White "Zhuravlev, Alexey"]
[Black "Kavyev, Ruslan"]
[WhiteFideId "4164199"]
[BlackFideId "34110981"]
[WhiteElo "2484"]
[BlackElo "2172"]
[Result "0-1"]
[Round "11"]
[TimeControl "180+1"]
[Date "2021.07.06"]
[WhiteClock "0:00:07"]
[BlackClock "0:00:10"]

1. e4 {[%clk 0:02:56]}  c5 {[%clk 0:02:59]} 2. Nc3 {[%clk 0:02:56]}  d6 {[%clk 0:03:00]} 3. f4 {[%clk 0:02:56]}  g6 {[%clk 0:03:00]} 4. Nf3 {[%clk 0:02:56]}  Bg7 {[%clk 0:03:00]} 5. Bc4 {[%clk 0:02:57]}  Nc6 {[%clk 0:03:00]} 6. O-O {[%clk 0:02:57]}  e6 {[%clk 0:03:00]} 7. f5 {[%clk 0:02:57]}  gxf5 {[%clk 0:03:01]} 8. d3 {[%clk 0:02:57]}  Nge7 {[%clk 0:03:00]} 9. Bg5 {[%clk 0:02:56]}  h6 {[%clk 0:02:57]} 10. Bh4 {[%clk 0:02:56]}  Qd7 {[%clk 0:02:40]} 11. Qe1 {[%clk 0:02:51]}  b6 {[%clk 0:02:16]} 12. Kh1 {[%clk 0:02:42]}  Bb7 {[%clk 0:02:16]} 13. a3 {[%clk 0:02:39]}  O-O-O {[%clk 0:02:06]} 14. b4 {[%clk 0:02:38]}  Kb8 {[%clk 0:01:50]} 15. Rb1 {[%clk 0:02:38]}  fxe4 {[%clk 0:01:41]} 16. dxe4 {[%clk 0:02:36]}  Nd4 {[%clk 0:01:27]} 17. Nxd4 {[%clk 0:02:28]}  cxd4 {[%clk 0:01:28]} 18. Bb5 {[%clk 0:02:19]}  Nc6 {[%clk 0:01:03]} 19. Bxd8 {[%clk 0:02:15]}  Rxd8 {[%clk 0:00:58]} 20. Nd5 {[%clk 0:02:12]}  a6 {[%clk 0:00:48]} 21. Bxc6 {[%clk 0:02:00]}  Qxc6 {[%clk 0:00:45]} 22. Nf6 {[%clk 0:02:00]}  Qxc2 {[%clk 0:00:40]} 23. Rc1 {[%clk 0:02:00]}  Qb2 {[%clk 0:00:33]} 24. Ng4 {[%clk 0:01:34]}  d3 {[%clk 0:00:32]} 25. Rf2 {[%clk 0:01:32]}  Qd4 {[%clk 0:00:29]} 26. Qe3 {[%clk 0:01:24]}  Qxe3 {[%clk 0:00:28]} 27. Nxe3 {[%clk 0:01:25]}  Bd4 {[%clk 0:00:29]} 28. Re1 {[%clk 0:01:25]}  Bxe4 {[%clk 0:00:27]} 29. Rf4 {[%clk 0:01:13]}  d2 {[%clk 0:00:25]} 30. Rd1 {[%clk 0:01:10]}  f5 {[%clk 0:00:24]} 31. Nc4 {[%clk 0:01:06]}  Rc8 {[%clk 0:00:18]} 32. Nxd2 {[%clk 0:01:06]}  Be3 {[%clk 0:00:18]} 33. Rxe4 {[%clk 0:00:33]}  fxe4 {[%clk 0:00:18]} 34. Nxe4 {[%clk 0:00:34]}  d5 {[%clk 0:00:18]} 35. Nf6 {[%clk 0:00:25]}  Rc3 {[%clk 0:00:15]} 36. a4 {[%clk 0:00:21]}  Rb3 {[%clk 0:00:14]} 37. b5 {[%clk 0:00:18]}  axb5 {[%clk 0:00:14]} 38. axb5 {[%clk 0:00:18]}  Rxb5 {[%clk 0:00:15]} 39. g3 {[%clk 0:00:18]}  Rb2 {[%clk 0:00:14]} 40. Rd3 {[%clk 0:00:16]}  d4 {[%clk 0:00:14]} 41. Ng4 {[%clk 0:00:14]}  Re2 {[%clk 0:00:07]} 42. Nxe3 {[%clk 0:00:09]}  dxe3 {[%clk 0:00:08]} 43. Rd6 {[%clk 0:00:09]}  Kc7 {[%clk 0:00:08]} 44. Rxe6 {[%clk 0:00:09]}  b5 {[%clk 0:00:08]} 45. Rxh6 {[%clk 0:00:09]}  b4 {[%clk 0:00:08]} 46. Rh4 {[%clk 0:00:10]}  b3 {[%clk 0:00:08]} 47. Rb4 {[%clk 0:00:09]}  b2 {[%clk 0:00:09]} 48. h4 {[%clk 0:00:06]}  Re1+ {[%clk 0:00:09]} 49. Kg2 {[%clk 0:00:06]}  b1=Q {[%clk 0:00:10]} 50. Rxb1 {[%clk 0:00:07]}  Rxb1 {[%clk 0:00:11]} 51. Kf3 {[%clk 0:00:07]}  Kd6 {[%clk 0:00:11]} 52. Kxe3 {[%clk 0:00:07]}  Ke5 {[%clk 0:00:11]} 53. Kf3 {[%clk 0:00:07]}  Rb4 {[%clk 0:00:10]} 0-1


[Site "https://www.chess.com"]